[Event "Magnus Carlsen Invitational 2021"]
[Site "Online"]
[Date "2021.03.10"]
[Round "10.5"]
[White "Pichot, Alan"]
[Black "Firouzja, Alireza"]
[Result "0-1"]
[ECO "B10"]
[WhiteElo "2548"]
[BlackElo "2703"]
[Annotator "ChessBase"]
[PlyCount "78"]
[EventDate "2021.03.13"]
[EventType "tourn"]
[EventCountry "NET"]
[Tiebreak "Koya+Number of black wins+Number of wins"]
[SourceTitle "playchess.com"]
[Source "ChessBase"]
[SourceQuality "1"]
[TimeControl "900+10"]

1. e4 {[%emt 0:00:00]} c6 {[%emt 0:00:00]} 2. Nf3 {[%emt 0:00:00]} d5 {[%emt 0:
00:00]} 3. d3 {[%emt 0:00:00]} g6 {[%emt 0:00:00]} 4. Qe2 {[%emt 0:00:07]} Bg7
{[%emt 0:00:09]} 5. g3 {[%emt 0:00:03]} Bg4 {[%emt 0:01:39]} 6. Bg2 {[%emt 0:
00:14]} e6 {[%emt 0:00:32]} 7. O-O {[%emt 0:00:14]} Ne7 {[%emt 0:00:28]} 8. h3
{[%emt 0:00:07]} Bxf3 {[%emt 0:00:01]} 9. Bxf3 {[%emt 0:00:02]} O-O {[%emt 0:
00:07]} 10. Bg2 {[%emt 0:00:05]} a5 {[%emt 0:00:35]} 11. Kh2 {[%emt 0:00:37]}
a4 {[%emt 0:00:04]} 12. a3 {[%emt 0:00:04]} Re8 {[%emt 0:01:03]} 13. f4 {
[%emt 0:00:10]} c5 {[%emt 0:00:09]} 14. c3 {[%emt 0:00:55]} Nbc6 {[%emt 0:00:
20]} 15. Be3 {[%emt 0:00:39]} Qb6 {[%emt 0:00:14]} 16. Qc2 {[%emt 0:00:15]} d4
{[%emt 0:02:27]} 17. Bg1 {[%emt 0:00:20]} Qb3 {[%emt 0:00:41]} 18. Rc1 {
[%emt 0:01:24]} Red8 {[%emt 0:00:40]} 19. Qxb3 {[%emt 0:02:28]} axb3 {[%emt 0:
00:03]} 20. e5 {[%emt 0:00:01]} g5 {[%emt 0:00:42]} 21. Be4 {[%emt 0:03:55]}
gxf4 {[%emt 0:00:53]} 22. gxf4 {[%emt 0:00:00]} Bh6 {[%emt 0:00:21]} 23. Rf1 {
[%emt 0:00:10]} Ng6 {[%emt 0:00:35]} 24. Kg3 {[%emt 0:01:12]} Kh8 {[%emt 0:00:
13]} 25. Nd2 {[%emt 0:00:11]} dxc3 {[%emt 0:02:13]} 26. Nxb3 {[%emt 0:01:17]}
cxb2 {[%emt 0:00:12]} 27. Rab1 {[%emt 0:00:05]} c4 {[%emt 0:00:25]} 28. dxc4 {
[%emt 0:00:34]} Rxa3 {[%emt 0:00:03]} 29. Rxb2 {[%emt 0:00:01]} Na5 {[%emt 0:
00:32]} 30. Bb6 {[%emt 0:00:45]} Nxb3 {[%emt 0:00:30]} 31. Rf3 {[%emt 0:02:22]}
Bxf4+ {[%emt 0:01:03]} 32. Kg4 {[%emt 0:00:05]} Bxe5 {[%emt 0:01:42]} 33. Bxg6
{[%emt 0:01:57]} Bxb2 {[%emt 0:01:01]} 34. Rxf7 {[%emt 0:00:02]} hxg6 {[%emt 0:
00:19]} 35. Bxd8 {[%emt 0:00:01]} Nc5 {[%emt 0:00:26]} 36. Bb6 {[%emt 0:00:24]}
Ne4 {[%emt 0:00:21]} 37. Rxb7 {[%emt 0:00:06]} Be5 {[%emt 0:00:08]} 38. Bd8 {
[%emt 0:00:17]} Rg3+ {[%emt 0:00:13]} 39. Kh4 {[%emt 0:00:21]} Nd6 {[%emt 0:00:
06]} 0-1